[Event "Titled Tuesday Blitz June 6 Late 2023"]
[White "Dzierzak, Radoslaw"]
[Black "Alex_Sahakyan2006"]
[WhiteFideId "1161407"]
[WhiteElo "2166"]
[BlackElo "2691"]
[Result "0-1"]
[Round "2"]
[TimeControl "180+2"]
[Date "2023.06.07"]
[WhiteClock "0:00:02"]
[BlackClock "0:00:55"]
[Board "66"]

1. e4 {[%clk 0:03:00]}  c5 {[%clk 0:03:00]} 2. Nf3 {[%clk 0:03:00]}  d6 {[%clk 0:03:01]} 3. d4 {[%clk 0:03:00]}  cxd4 {[%clk 0:03:02]} 4. Nxd4 {[%clk 0:03:00]}  Nf6 {[%clk 0:03:02]} 5. Nc3 {[%clk 0:03:00]}  g6 {[%clk 0:03:03]} 6. g3 {[%clk 0:03:00]}  Bg7 {[%clk 0:03:00]} 7. Bg2 {[%clk 0:03:00]}  O-O {[%clk 0:03:01]} 8. O-O {[%clk 0:03:00]}  Nc6 {[%clk 0:03:02]} 9. Nde2 {[%clk 0:03:00]}  Rb8 {[%clk 0:03:01]} 10. a4 {[%clk 0:02:59]}  a6 {[%clk 0:03:01]} 11. h3 {[%clk 0:02:56]}  b5 {[%clk 0:03:01]} 12. axb5 {[%clk 0:02:56]}  axb5 {[%clk 0:03:02]} 13. Nd5 {[%clk 0:02:57]}  b4 {[%clk 0:02:57]} 14. Bg5 {[%clk 0:02:49]}  Nxd5 {[%clk 0:02:48]} 15. exd5 {[%clk 0:02:48]}  Ne5 {[%clk 0:02:48]} 16. b3 {[%clk 0:02:44]}  Bxh3 {[%clk 0:02:39]} 17. Nd4 {[%clk 0:02:41]}  Bxg2 {[%clk 0:02:37]} 18. Kxg2 {[%clk 0:02:41]}  Ra8 {[%clk 0:02:33]} 19. Qd2 {[%clk 0:02:36]}  Qd7 {[%clk 0:02:27]} 20. Rfe1 {[%clk 0:02:12]}  Rxa1 {[%clk 0:02:26]} 21. Rxa1 {[%clk 0:02:12]}  h6 {[%clk 0:02:18]} 22. Bxh6 {[%clk 0:02:00]}  Qg4 {[%clk 0:02:14]} 23. Bxg7 {[%clk 0:01:55]}  Kxg7 {[%clk 0:02:15]} 24. Qe3 {[%clk 0:01:51]}  Rh8 {[%clk 0:02:12]} 25. Rh1 {[%clk 0:01:47]}  Rxh1 {[%clk 0:02:07]} 26. Kxh1 {[%clk 0:01:48]}  Qh3+ {[%clk 0:01:57]} 27. Kg1 {[%clk 0:01:49]}  Ng4 {[%clk 0:01:56]} 28. Qf3 {[%clk 0:01:45]}  Qh2+ {[%clk 0:01:55]} 29. Kf1 {[%clk 0:01:45]}  Ne5 {[%clk 0:01:53]} 30. Qg2 {[%clk 0:01:17]}  Qh6 {[%clk 0:01:51]} 31. f4 {[%clk 0:01:07]}  Ng4 {[%clk 0:01:51]} 32. Ke2 {[%clk 0:01:07]}  Qh5 {[%clk 0:01:48]} 33. Kd2 {[%clk 0:01:05]}  Nf6 {[%clk 0:01:44]} 34. f5 {[%clk 0:00:54]}  gxf5 {[%clk 0:01:41]} 35. Kc1 {[%clk 0:00:47]}  Ne4 {[%clk 0:01:36]} 36. Kb2 {[%clk 0:00:40]}  Qg5 {[%clk 0:01:35]} 37. g4 {[%clk 0:00:35]}  Kf8 {[%clk 0:01:15]} 38. Nxf5 {[%clk 0:00:33]}  Qf6+ {[%clk 0:01:14]} 39. Kb1 {[%clk 0:00:29]}  Nc3+ {[%clk 0:01:14]} 40. Kc1 {[%clk 0:00:29]}  Qg5+ {[%clk 0:01:06]} 41. Kb2 {[%clk 0:00:20]}  Nd1+ {[%clk 0:01:04]} 42. Kb1 {[%clk 0:00:20]}  Qf6 {[%clk 0:01:02]} 43. Kc1 {[%clk 0:00:16]}  Qa1+ {[%clk 0:01:01]} 44. Kd2 {[%clk 0:00:16]}  Nc3 {[%clk 0:01:01]} 45. Ne3 {[%clk 0:00:03]}  Nb1+ {[%clk 0:00:55]} 46. Ke2 {[%clk 0:00:02]}  Qd4 {[%clk 0:00:55]} 0-1


[Site "https://www.chess.com"]

[Event "Titled Tuesday Blitz June 6 Late 2023"]
[White "Korchmar, Vasiliy"]
[Black "Lalanne, Pablo"]
[WhiteFideId "24131750"]
[BlackFideId "112151"]
[WhiteElo "2370"]
[BlackElo "2120"]
[Result "1-0"]
[Round "2"]
[TimeControl "180+2"]
[Date "2023.06.07"]
[WhiteClock "0:00:05"]
[BlackClock "0:00:06"]
[Board "69"]

1. e4 {[%clk 0:03:00]}  c5 {[%clk 0:02:59]} 2. Nf3 {[%clk 0:03:01]}  d6 {[%clk 0:02:59]} 3. d4 {[%clk 0:03:01]}  cxd4 {[%clk 0:03:00]} 4. Nxd4 {[%clk 0:03:01]}  Nf6 {[%clk 0:03:01]} 5. Nc3 {[%clk 0:03:02]}  Nc6 {[%clk 0:03:01]} 6. Be2 {[%clk 0:03:02]}  e5 {[%clk 0:03:00]} 7. Nf3 {[%clk 0:03:02]}  Be7 {[%clk 0:02:57]} 8. O-O {[%clk 0:03:02]}  O-O {[%clk 0:02:53]} 9. Re1 {[%clk 0:03:02]}  h6 {[%clk 0:02:48]} 10. h3 {[%clk 0:03:02]}  Be6 {[%clk 0:02:47]} 11. Bf1 {[%clk 0:03:02]}  Qd7 {[%clk 0:02:37]} 12. b3 {[%clk 0:02:58]}  Rac8 {[%clk 0:02:32]} 13. Bb2 {[%clk 0:02:58]}  Nh7 {[%clk 0:02:25]} 14. Nd5 {[%clk 0:02:57]}  Bd8 {[%clk 0:02:22]} 15. Nd2 {[%clk 0:02:46]}  f5 {[%clk 0:02:18]} 16. Nc4 {[%clk 0:02:38]}  Kh8 {[%clk 0:02:10]} 17. exf5 {[%clk 0:02:30]}  Bxf5 {[%clk 0:02:06]} 18. Nde3 {[%clk 0:02:30]}  Be7 {[%clk 0:01:49]} 19. Nxf5 {[%clk 0:02:26]}  Qxf5 {[%clk 0:01:45]} 20. f3 {[%clk 0:01:21]}  Rcd8 {[%clk 0:01:13]} 21. Ne3 {[%clk 0:01:02]}  Qg6 {[%clk 0:01:05]} 22. Nd5 {[%clk 0:00:58]}  Bh4 {[%clk 0:01:01]} 23. Re4 {[%clk 0:00:54]}  Bf6 {[%clk 0:00:46]} 24. Bd3 {[%clk 0:00:51]}  Qh5 {[%clk 0:00:42]} 25. c4 {[%clk 0:00:44]}  Ng5 {[%clk 0:00:41]} 26. Rg4 {[%clk 0:00:32]}  Ne7 {[%clk 0:00:37]} 27. Nxe7 {[%clk 0:00:25]}  Bxe7 {[%clk 0:00:38]} 28. Qe2 {[%clk 0:00:24]}  Rf6 {[%clk 0:00:21]} 29. h4 {[%clk 0:00:17]}  Ne6 {[%clk 0:00:19]} 30. Qe4 {[%clk 0:00:17]}  g6 {[%clk 0:00:16]} 31. Rxg6 {[%clk 0:00:13]}  Rxg6 {[%clk 0:00:16]} 32. Qxg6 {[%clk 0:00:13]}  Qxg6 {[%clk 0:00:17]} 33. Bxg6 {[%clk 0:00:14]}  Bxh4 {[%clk 0:00:17]} 34. Rd1 {[%clk 0:00:12]}  Nf4 {[%clk 0:00:17]} 35. Be4 {[%clk 0:00:10]}  Bf6 {[%clk 0:00:15]} 36. Bxb7 {[%clk 0:00:08]}  a5 {[%clk 0:00:15]} 37. Be4 {[%clk 0:00:08]}  Kg7 {[%clk 0:00:15]} 38. Ba3 {[%clk 0:00:08]}  Be7 {[%clk 0:00:14]} 39. Kf2 {[%clk 0:00:08]}  Kf6 {[%clk 0:00:14]} 40. g3 {[%clk 0:00:08]}  Ne6 {[%clk 0:00:13]} 41. Rd5 {[%clk 0:00:09]}  a4 {[%clk 0:00:10]} 42. Ra5 {[%clk 0:00:05]}  axb3 {[%clk 0:00:10]} 43. axb3 {[%clk 0:00:06]}  Rb8 {[%clk 0:00:10]} 44. b4 {[%clk 0:00:05]}  Nd4 {[%clk 0:00:08]} 45. Bd5 {[%clk 0:00:04]}  Nf5 {[%clk 0:00:08]} 46. b5 {[%clk 0:00:04]}  h5 {[%clk 0:00:08]} 47. Ra6 {[%clk 0:00:04]}  h4 {[%clk 0:00:08]} 48. g4 {[%clk 0:00:05]}  Nd4 {[%clk 0:00:09]} 49. Bxd6 {[%clk 0:00:05]}  Bxd6 {[%clk 0:00:09]} 50. Rxd6+ {[%clk 0:00:06]}  Ke7 {[%clk 0:00:09]} 51. Rh6 {[%clk 0:00:05]}  Rf8 {[%clk 0:00:05]} 52. Rxh4 {[%clk 0:00:05]}  Kd6 {[%clk 0:00:06]} 53. Rh6+ {[%clk 0:00:04]}  Kc5 {[%clk 0:00:06]} 54. b6 {[%clk 0:00:05]} 1-0


[Site "https://www.chess.com"]

[Event "Titled Tuesday Blitz June 6 Late 2023"]
[White "Amburgy, Ryan"]
[Black "Kejzar, Petra"]
[WhiteFideId "30924820"]
[BlackFideId "14610213"]
[WhiteElo "2134"]
[BlackElo "2089"]
[Result "0-1"]
[Round "2"]
[TimeControl "180+2"]
[Date "2023.06.07"]
[WhiteClock "0:01:20"]
[BlackClock "0:02:30"]
[Board "75"]

1. d4 {[%clk 0:03:00]}  d5 {[%clk 0:02:59]} 2. c4 {[%clk 0:03:01]}  c6 {[%clk 0:02:59]} 3. Nf3 {[%clk 0:03:01]}  Nf6 {[%clk 0:02:59]} 4. Nc3 {[%clk 0:03:02]}  dxc4 {[%clk 0:02:59]} 5. a4 {[%clk 0:03:01]}  Bf5 {[%clk 0:03:00]} 6. e3 {[%clk 0:03:01]}  e6 {[%clk 0:03:00]} 7. Bxc4 {[%clk 0:03:01]}  Bb4 {[%clk 0:03:00]} 8. O-O {[%clk 0:03:01]}  O-O {[%clk 0:03:01]} 9. Qe2 {[%clk 0:03:02]}  Nbd7 {[%clk 0:03:01]} 10. e4 {[%clk 0:02:46]}  Bg6 {[%clk 0:03:01]} 11. Bd3 {[%clk 0:02:35]}  a5 {[%clk 0:02:55]} 12. Rd1 {[%clk 0:02:27]}  Qe7 {[%clk 0:02:52]} 13. Bg5 {[%clk 0:02:22]}  e5 {[%clk 0:02:50]} 14. Bxf6 {[%clk 0:01:57]}  Qxf6 {[%clk 0:02:47]} 15. d5 {[%clk 0:01:57]}  Nb6 {[%clk 0:02:44]} 16. Qe3 {[%clk 0:01:51]}  cxd5 {[%clk 0:02:41]} 17. Nxd5 {[%clk 0:01:50]}  Nxd5 {[%clk 0:02:40]} 18. exd5 {[%clk 0:01:51]}  e4 {[%clk 0:02:34]} 19. Bxe4 {[%clk 0:01:36]}  Rfe8 {[%clk 0:02:34]} 20. Re1 {[%clk 0:01:20]}  Rxe4 {[%clk 0:02:30]} 0-1


[Site "https://www.chess.com"]

[Event "Titled Tuesday Blitz June 6 Late 2023"]
[White "Matthew_Clarke"]
[Black "Blohberger, Felix"]
[BlackFideId "1632051"]
[WhiteElo "2271"]
[BlackElo "2435"]
[Result "0-1"]
[Round "2"]
[TimeControl "180+2"]
[Date "2023.06.07"]
[WhiteClock "0:00:02"]
[BlackClock "0:00:04"]
[Board "76"]

1. d4 {[%clk 0:03:00]}  Nf6 {[%clk 0:02:59]} 2. c4 {[%clk 0:03:00]}  e6 {[%clk 0:02:59]} 3. g3 {[%clk 0:02:58]}  Bb4+ {[%clk 0:02:58]} 4. Bd2 {[%clk 0:02:57]}  Be7 {[%clk 0:02:57]} 5. Bg2 {[%clk 0:02:56]}  d5 {[%clk 0:02:57]} 6. Nf3 {[%clk 0:02:55]}  O-O {[%clk 0:02:58]} 7. O-O {[%clk 0:02:54]}  Nbd7 {[%clk 0:02:59]} 8. Nc3 {[%clk 0:02:40]}  c6 {[%clk 0:02:45]} 9. b3 {[%clk 0:02:25]}  b6 {[%clk 0:02:35]} 10. Qc2 {[%clk 0:02:22]}  a5 {[%clk 0:02:20]} 11. e4 {[%clk 0:02:18]}  Ba6 {[%clk 0:02:17]} 12. e5 {[%clk 0:02:09]}  Ne8 {[%clk 0:02:16]} 13. Ne2 {[%clk 0:01:05]}  Nc7 {[%clk 0:02:11]} 14. h4 {[%clk 0:01:02]}  h6 {[%clk 0:02:09]} 15. Rfc1 {[%clk 0:00:57]}  Rc8 {[%clk 0:02:06]} 16. Nf4 {[%clk 0:00:55]}  c5 {[%clk 0:02:02]} 17. dxc5 {[%clk 0:00:43]}  Nxc5 {[%clk 0:01:54]} 18. Be3 {[%clk 0:00:35]}  Bb7 {[%clk 0:01:38]} 19. Nd4 {[%clk 0:00:33]}  Qd7 {[%clk 0:01:33]} 20. Rd1 {[%clk 0:00:27]}  Rfd8 {[%clk 0:01:28]} 21. Qb2 {[%clk 0:00:16]}  Qe8 {[%clk 0:01:27]} 22. Rac1 {[%clk 0:00:15]}  Ba8 {[%clk 0:01:11]} 23. h5 {[%clk 0:00:12]}  Bf8 {[%clk 0:01:04]} 24. Rd2 {[%clk 0:00:11]}  dxc4 {[%clk 0:00:41]} 25. Bxa8 {[%clk 0:00:09]}  Rxa8 {[%clk 0:00:22]} 26. bxc4 {[%clk 0:00:08]}  Rab8 {[%clk 0:00:21]} 27. g4 {[%clk 0:00:04]}  Ne4 {[%clk 0:00:21]} 28. Rdc2 {[%clk 0:00:03]}  Bc5 {[%clk 0:00:21]} 29. Nb5 {[%clk 0:00:03]}  Nxb5 {[%clk 0:00:16]} 30. Qxb5 {[%clk 0:00:02]}  Bxe3 {[%clk 0:00:15]} 31. Qxe8+ {[%clk 0:00:01]}  Rxe8 {[%clk 0:00:14]} 32. fxe3 {[%clk 0:00:02]}  Rec8 {[%clk 0:00:12]} 33. Ne2 {[%clk 0:00:01]}  Rc5 {[%clk 0:00:11]} 34. Nd4 {[%clk 0:00:02]}  Rbc8 {[%clk 0:00:11]} 35. Rb1 {[%clk 0:00:02]}  Rxc4 {[%clk 0:00:07]} 36. Rxc4 {[%clk 0:00:03]}  Rxc4 {[%clk 0:00:07]} 37. Rxb6 {[%clk 0:00:04]}  Nc3 {[%clk 0:00:06]} 38. Rb8+ {[%clk 0:00:03]}  Kh7 {[%clk 0:00:07]} 39. Rb7 {[%clk 0:00:03]}  Kg8 {[%clk 0:00:07]} 40. Rb8+ {[%clk 0:00:03]}  Kh7 {[%clk 0:00:07]} 41. Rb7 {[%clk 0:00:04]}  Rc5 {[%clk 0:00:07]} 42. Rxf7 {[%clk 0:00:04]}  Rxe5 {[%clk 0:00:08]} 43. Ra7 {[%clk 0:00:03]}  Nxa2 {[%clk 0:00:07]} 44. Kf2 {[%clk 0:00:03]}  Nc3 {[%clk 0:00:07]} 45. Nc6 {[%clk 0:00:03]}  Rc5 {[%clk 0:00:04]} 46. Nxa5 {[%clk 0:00:03]}  Ne4+ {[%clk 0:00:04]} 47. Kf3 {[%clk 0:00:02]}  Ng5+ {[%clk 0:00:05]} 48. Kg3 {[%clk 0:00:02]}  Rc3 {[%clk 0:00:05]} 49. Kf2 {[%clk 0:00:02]}  Ne4+ {[%clk 0:00:04]} 50. Kf3 {[%clk 0:00:02]}  Ng5+ {[%clk 0:00:04]} 51. Kf2 {[%clk 0:00:02]}  Rc2+ {[%clk 0:00:05]} 52. Ke1 {[%clk 0:00:01]}  Nf3+ {[%clk 0:00:05]} 53. Kd1 {[%clk 0:00:01]}  Rd2+ {[%clk 0:00:05]} 54. Kc1 {[%clk 0:00:02]}  Re2 {[%clk 0:00:05]} 55. Nc4 {[%clk 0:00:01]}  Rg2 {[%clk 0:00:05]} 56. Nd6 {[%clk 0:00:02]}  Rxg4 {[%clk 0:00:05]} 57. Ne8 {[%clk 0:00:02]}  Kg8 {[%clk 0:00:04]} 0-1


[Site "https://www.chess.com"]

[Event "Titled Tuesday Blitz June 6 Late 2023"]
[White "Ibadov, Dashgyn"]
[Black "Ogreberbere"]
[WhiteFideId "24107514"]
[WhiteElo "2208"]
[BlackElo "2178"]
[Result "0-1"]
[Round "2"]
[TimeControl "180+2"]
[Date "2023.06.07"]
[WhiteClock "0:00:04"]
[BlackClock "0:00:07"]
[Board "79"]

1. e4 {[%clk 0:03:00]}  e6 {[%clk 0:02:59]} 2. d4 {[%clk 0:03:00]}  d5 {[%clk 0:02:56]} 3. Nc3 {[%clk 0:03:01]}  Nf6 {[%clk 0:02:56]} 4. e5 {[%clk 0:03:00]}  Nfd7 {[%clk 0:02:55]} 5. Nce2 {[%clk 0:03:01]}  c5 {[%clk 0:02:55]} 6. c3 {[%clk 0:03:01]}  Nc6 {[%clk 0:02:55]} 7. Nf3 {[%clk 0:03:02]}  Be7 {[%clk 0:02:44]} 8. a3 {[%clk 0:02:59]}  b5 {[%clk 0:02:40]} 9. b4 {[%clk 0:02:47]}  cxd4 {[%clk 0:02:36]} 10. cxd4 {[%clk 0:02:46]}  a5 {[%clk 0:02:32]} 11. Nf4 {[%clk 0:02:46]}  axb4 {[%clk 0:02:19]} 12. Bxb5 {[%clk 0:02:44]}  Qb6 {[%clk 0:02:16]} 13. a4 {[%clk 0:02:02]}  Ba6 {[%clk 0:02:12]} 14. Bxa6 {[%clk 0:02:01]}  Qxa6 {[%clk 0:02:08]} 15. Nd3 {[%clk 0:02:01]}  Qc4 {[%clk 0:01:56]} 16. O-O {[%clk 0:01:47]}  Nxd4 {[%clk 0:01:44]} 17. Nxd4 {[%clk 0:01:48]}  Qxd4 {[%clk 0:01:44]} 18. Be3 {[%clk 0:01:48]}  Qc4 {[%clk 0:01:29]} 19. Rc1 {[%clk 0:01:15]}  Qa6 {[%clk 0:01:29]} 20. Qg4 {[%clk 0:01:14]}  Qxd3 {[%clk 0:01:17]} 21. Qxg7 {[%clk 0:01:14]}  Rf8 {[%clk 0:01:15]} 22. Qg4 {[%clk 0:01:09]}  Qg6 {[%clk 0:01:13]} 23. Qd4 {[%clk 0:01:07]}  Rg8 {[%clk 0:01:13]} 24. g3 {[%clk 0:01:06]}  Qe4 {[%clk 0:01:13]} 25. Qb2 {[%clk 0:00:45]}  Nxe5 {[%clk 0:01:11]} 26. Rfd1 {[%clk 0:00:27]}  Nd3 {[%clk 0:00:53]} 27. Rxd3 {[%clk 0:00:28]}  Qxd3 {[%clk 0:00:53]} 28. Qe5 {[%clk 0:00:29]}  Qe4 {[%clk 0:00:50]} 29. Qc7 {[%clk 0:00:28]}  Rd8 {[%clk 0:00:44]} 30. Qc6+ {[%clk 0:00:26]}  Kf8 {[%clk 0:00:44]} 31. Bh6+ {[%clk 0:00:25]}  Rg7 {[%clk 0:00:43]} 32. a5 {[%clk 0:00:22]}  Qg6 {[%clk 0:00:42]} 33. Bxg7+ {[%clk 0:00:20]}  Kxg7 {[%clk 0:00:41]} 34. a6 {[%clk 0:00:21]}  b3 {[%clk 0:00:37]} 35. Qb6 {[%clk 0:00:20]}  Qd3 {[%clk 0:00:31]} 36. a7 {[%clk 0:00:17]}  Qd2 {[%clk 0:00:27]} 37. Rb1 {[%clk 0:00:14]}  Qc2 {[%clk 0:00:22]} 38. Rxb3 {[%clk 0:00:13]}  Bc5 {[%clk 0:00:21]} 39. Qxd8 {[%clk 0:00:04]}  Qxf2+ {[%clk 0:00:07]} 40. Kh1 {[%clk 0:00:04]}  Qg1# {[%clk 0:00:07]} 0-1


[Site "https://www.chess.com"]

[Event "Titled Tuesday Blitz June 6 Late 2023"]
[White "Goryachkina, Aleksandra"]
[Black "Sanchez, Robert"]
[WhiteFideId "4147103"]
[BlackFideId "2034360"]
[WhiteElo "2471"]
[BlackElo "1861"]
[Result "0-1"]
[Round "2"]
[TimeControl "180+2"]
[Date "2023.06.07"]
[WhiteClock "0:00:01"]
[BlackClock "0:00:12"]
[Board "82"]

1. e4 {[%clk 0:02:59]}  e6 {[%clk 0:03:00]} 2. d4 {[%clk 0:02:59]}  d5 {[%clk 0:03:00]} 3. Nc3 {[%clk 0:02:59]}  Nf6 {[%clk 0:03:00]} 4. Bg5 {[%clk 0:02:59]}  Be7 {[%clk 0:03:00]} 5. e5 {[%clk 0:02:57]}  Nfd7 {[%clk 0:03:01]} 6. h4 {[%clk 0:02:57]}  h6 {[%clk 0:03:01]} 7. Bxe7 {[%clk 0:02:55]}  Qxe7 {[%clk 0:03:02]} 8. Nf3 {[%clk 0:02:45]}  a6 {[%clk 0:02:58]} 9. Qd2 {[%clk 0:02:37]}  c5 {[%clk 0:02:57]} 10. dxc5 {[%clk 0:02:36]}  Nc6 {[%clk 0:02:55]} 11. O-O-O {[%clk 0:02:34]}  Nxc5 {[%clk 0:02:46]} 12. Bd3 {[%clk 0:02:20]}  Bd7 {[%clk 0:02:42]} 13. Kb1 {[%clk 0:02:19]}  b5 {[%clk 0:02:38]} 14. Ne2 {[%clk 0:02:11]}  Nxd3 {[%clk 0:02:25]} 15. cxd3 {[%clk 0:01:58]}  O-O {[%clk 0:02:13]} 16. Ned4 {[%clk 0:01:50]}  Nxd4 {[%clk 0:02:03]} 17. Nxd4 {[%clk 0:01:50]}  f6 {[%clk 0:02:02]} 18. f4 {[%clk 0:01:44]}  fxe5 {[%clk 0:02:02]} 19. fxe5 {[%clk 0:01:45]}  b4 {[%clk 0:01:37]} 20. g4 {[%clk 0:01:40]}  Qc5 {[%clk 0:01:18]} 21. Qe3 {[%clk 0:01:33]}  Rf7 {[%clk 0:00:55]} 22. Rc1 {[%clk 0:01:27]}  Qb6 {[%clk 0:00:51]} 23. g5 {[%clk 0:01:24]}  h5 {[%clk 0:00:44]} 24. g6 {[%clk 0:01:22]}  Rff8 {[%clk 0:00:38]} 25. Ka1 {[%clk 0:01:01]}  Be8 {[%clk 0:00:28]} 26. Rhg1 {[%clk 0:00:58]}  a5 {[%clk 0:00:19]} 27. Rg5 {[%clk 0:00:52]}  a4 {[%clk 0:00:16]} 28. Rxh5 {[%clk 0:00:48]}  a3 {[%clk 0:00:16]} 29. Rg1 {[%clk 0:00:02]}  Bxg6 {[%clk 0:00:14]} 30. Kb1 {[%clk 0:00:01]}  Bxh5 {[%clk 0:00:12]} 0-1


[Site "https://www.chess.com"]

[Event "Titled Tuesday Blitz June 6 Late 2023"]
[White "Duda, Jan-Krzysztof"]
[Black "Krsnik Cohar, Ivan Vihor"]
[WhiteFideId "1170546"]
[BlackFideId "14520044"]
[WhiteElo "2783"]
[BlackElo "2414"]
[Result "1-0"]
[Round "2"]
[TimeControl "180+2"]
[Date "2023.06.07"]
[WhiteClock "0:02:25"]
[BlackClock "0:01:03"]
[Board "84"]

1. e4 {[%clk 0:03:00]}  c5 {[%clk 0:02:59]} 2. Nf3 {[%clk 0:03:00]}  g6 {[%clk 0:02:59]} 3. c4 {[%clk 0:02:58]}  Nc6 {[%clk 0:02:57]} 4. d4 {[%clk 0:02:59]}  cxd4 {[%clk 0:02:58]} 5. Nxd4 {[%clk 0:02:59]}  Bg7 {[%clk 0:02:57]} 6. Be3 {[%clk 0:02:59]}  Nf6 {[%clk 0:02:56]} 7. Nc3 {[%clk 0:03:00]}  d6 {[%clk 0:02:54]} 8. f3 {[%clk 0:02:58]}  Bd7 {[%clk 0:02:54]} 9. Qd2 {[%clk 0:02:56]}  Nxd4 {[%clk 0:02:50]} 10. Bxd4 {[%clk 0:02:56]}  a5 {[%clk 0:02:50]} 11. O-O-O {[%clk 0:02:53]}  a4 {[%clk 0:02:45]} 12. a3 {[%clk 0:02:53]}  Rc8 {[%clk 0:02:30]} 13. Kb1 {[%clk 0:02:46]}  O-O {[%clk 0:02:28]} 14. g4 {[%clk 0:02:46]}  Be6 {[%clk 0:02:04]} 15. Nxa4 {[%clk 0:02:43]}  Bxc4 {[%clk 0:01:53]} 16. Nb6 {[%clk 0:02:43]}  Bxf1 {[%clk 0:01:51]} 17. Nxc8 {[%clk 0:02:40]}  Bc4 {[%clk 0:01:42]} 18. Nb6 {[%clk 0:02:37]}  Be6 {[%clk 0:01:42]} 19. h4 {[%clk 0:02:34]}  Nd7 {[%clk 0:01:36]} 20. Nxd7 {[%clk 0:02:33]}  Qxd7 {[%clk 0:01:35]} 21. Bxg7 {[%clk 0:02:31]}  Kxg7 {[%clk 0:01:36]} 22. h5 {[%clk 0:02:31]}  Rg8 {[%clk 0:01:02]} 23. hxg6 {[%clk 0:02:29]}  fxg6 {[%clk 0:01:03]} 24. Qd4+ {[%clk 0:02:25]} 1-0


[Site "https://www.chess.com"]

[Event "Titled Tuesday Blitz June 6 Late 2023"]
[White "Grigoriants, Sergey"]
[Black "D`Arruda, Ricardo D."]
[WhiteFideId "4130804"]
[BlackFideId "100692"]
[WhiteElo "2502"]
[BlackElo "2517"]
[Result "0-1"]
[Round "2"]
[TimeControl "180+2"]
[Date "2023.06.07"]
[WhiteClock "0:00:04"]
[BlackClock "0:00:48"]
[Board "85"]

1. d4 {[%clk 0:02:56]}  Nf6 {[%clk 0:02:59]} 2. c4 {[%clk 0:02:56]}  e5 {[%clk 0:02:59]} 3. dxe5 {[%clk 0:02:55]}  Ne4 {[%clk 0:02:59]} 4. Nf3 {[%clk 0:02:43]}  Nc6 {[%clk 0:02:59]} 5. a3 {[%clk 0:02:28]}  d6 {[%clk 0:02:58]} 6. exd6 {[%clk 0:02:16]}  Bxd6 {[%clk 0:02:57]} 7. e3 {[%clk 0:02:17]}  Bf5 {[%clk 0:02:56]} 8. Be2 {[%clk 0:02:17]}  Qf6 {[%clk 0:02:55]} 9. O-O {[%clk 0:02:13]}  O-O-O {[%clk 0:02:55]} 10. Nbd2 {[%clk 0:01:58]}  Rhe8 {[%clk 0:02:55]} 11. Nxe4 {[%clk 0:01:07]}  Bxe4 {[%clk 0:02:55]} 12. Qa4 {[%clk 0:01:07]}  Qh6 {[%clk 0:02:52]} 13. h3 {[%clk 0:01:04]}  g5 {[%clk 0:02:45]} 14. c5 {[%clk 0:00:49]}  Bxc5 {[%clk 0:02:39]} 15. b4 {[%clk 0:00:49]}  Bb6 {[%clk 0:02:29]} 16. b5 {[%clk 0:00:49]}  Na5 {[%clk 0:02:23]} 17. Bb2 {[%clk 0:00:47]}  f5 {[%clk 0:01:59]} 18. Ne5 {[%clk 0:00:38]}  Rd2 {[%clk 0:01:38]} 19. Bc3 {[%clk 0:00:13]}  Rxe2 {[%clk 0:01:37]} 20. Bxa5 {[%clk 0:00:14]}  Rxe5 {[%clk 0:01:35]} 21. Bxb6 {[%clk 0:00:14]}  Qxb6 {[%clk 0:01:34]} 22. Rad1 {[%clk 0:00:11]}  Rd5 {[%clk 0:01:31]} 23. Qc4 {[%clk 0:00:10]}  Red2 {[%clk 0:01:25]} 24. Rxd2 {[%clk 0:00:09]}  Rxd2 {[%clk 0:01:26]} 25. Qg8+ {[%clk 0:00:08]}  Rd8 {[%clk 0:01:26]} 26. Qxg5 {[%clk 0:00:09]}  Qxb5 {[%clk 0:01:21]} 27. f3 {[%clk 0:00:09]}  Bc6 {[%clk 0:01:19]} 28. Rc1 {[%clk 0:00:09]}  Qb2 {[%clk 0:01:16]} 29. Qxf5+ {[%clk 0:00:08]}  Kb8 {[%clk 0:01:14]} 30. Rc2 {[%clk 0:00:08]}  Qxa3 {[%clk 0:01:07]} 31. e4 {[%clk 0:00:08]}  Qe3+ {[%clk 0:01:06]} 32. Kh2 {[%clk 0:00:08]}  Qd3 {[%clk 0:01:05]} 33. Rb2 {[%clk 0:00:03]}  Qd4 {[%clk 0:01:04]} 34. Rb1 {[%clk 0:00:03]}  h6 {[%clk 0:01:02]} 35. Qf4 {[%clk 0:00:02]}  Qd6 {[%clk 0:00:57]} 36. e5 {[%clk 0:00:01]}  Qf8 {[%clk 0:00:58]} 37. Qe3 {[%clk 0:00:01]}  Re8 {[%clk 0:00:54]} 38. Rb2 {[%clk 0:00:02]}  Qe7 {[%clk 0:00:51]} 39. f4 {[%clk 0:00:02]}  Qe6 {[%clk 0:00:51]} 40. Re2 {[%clk 0:00:03]}  Rg8 {[%clk 0:00:50]} 41. g4 {[%clk 0:00:03]}  h5 {[%clk 0:00:50]} 42. f5 {[%clk 0:00:04]}  Qc4 {[%clk 0:00:48]} 0-1


[Site "https://www.chess.com"]

[Event "Titled Tuesday Blitz June 6 Late 2023"]
[White "Lobanov, Sergei"]
[Black "Santos Flores, Alberto"]
[WhiteFideId "24183750"]
[BlackFideId "3601234"]
[WhiteElo "2501"]
[BlackElo "2235"]
[Result "0-1"]
[Round "2"]
[TimeControl "180+2"]
[Date "2023.06.07"]
[WhiteClock "0:00:35"]
[BlackClock "0:00:25"]
[Board "87"]

1. d4 {[%clk 0:03:00]}  d5 {[%clk 0:02:59]} 2. c4 {[%clk 0:03:01]}  c6 {[%clk 0:02:59]} 3. Nf3 {[%clk 0:03:00]}  Nf6 {[%clk 0:02:59]} 4. e3 {[%clk 0:03:01]}  Bf5 {[%clk 0:02:58]} 5. Nc3 {[%clk 0:03:02]}  e6 {[%clk 0:02:58]} 6. Nh4 {[%clk 0:03:02]}  Bg4 {[%clk 0:02:58]} 7. Qb3 {[%clk 0:03:00]}  Qb6 {[%clk 0:02:58]} 8. h3 {[%clk 0:02:57]}  Bh5 {[%clk 0:02:58]} 9. Bd2 {[%clk 0:02:55]}  Nbd7 {[%clk 0:02:57]} 10. g4 {[%clk 0:02:38]}  Bg6 {[%clk 0:02:57]} 11. g5 {[%clk 0:02:34]}  Ng8 {[%clk 0:02:49]} 12. Be2 {[%clk 0:02:23]}  Ne7 {[%clk 0:02:47]} 13. c5 {[%clk 0:02:14]}  Qxb3 {[%clk 0:02:44]} 14. axb3 {[%clk 0:02:15]}  a6 {[%clk 0:02:44]} 15. b4 {[%clk 0:02:14]}  Rb8 {[%clk 0:02:40]} 16. f3 {[%clk 0:01:55]}  Nf5 {[%clk 0:02:34]} 17. Nxf5 {[%clk 0:01:53]}  Bxf5 {[%clk 0:02:33]} 18. e4 {[%clk 0:01:53]}  Bg6 {[%clk 0:02:30]} 19. Bf4 {[%clk 0:01:48]}  Rc8 {[%clk 0:02:27]} 20. h4 {[%clk 0:01:33]}  h6 {[%clk 0:02:11]} 21. gxh6 {[%clk 0:01:23]}  gxh6 {[%clk 0:02:10]} 22. h5 {[%clk 0:01:24]}  Bh7 {[%clk 0:02:10]} 23. Rg1 {[%clk 0:00:50]}  Nf6 {[%clk 0:02:02]} 24. Be5 {[%clk 0:00:50]}  Be7 {[%clk 0:02:02]} 25. Kf2 {[%clk 0:00:48]}  Kd7 {[%clk 0:00:26]} 26. exd5 {[%clk 0:00:35]}  exd5 {[%clk 0:00:25]} 0-1


[Site "https://www.chess.com"]